[Event "4NCL Div 1 2018-19"]
[Site "Telford"]
[Date "2019.02.09"]
[Round "5.8"]
[White "Steil-Antoni, Fiona"]
[Black "Kolbus, Dietmar"]
[Result "0-1"]
[ECO "B23"]
[WhiteElo "2166"]
[BlackElo "2305"]
[Annotator "NA"]
[PlyCount "62"]
[EventDate "2018.11.10"]
[EventType "team-tourn"]
[EventCountry "GBR"]
[SourceTitle "playchess.com"]
[Source "ChessBase"]
[SourceQuality "1"]
[TimeControl "40/6000+30:3000+30"]

1. e4 {[%emt 0:00:00]} c5 {[%emt 0:00:00]} 2. Nc3 {[%emt 0:00:00]} Nc6 {[%emt 0:00:00]} 3. f4 {[%emt 0:00:00]} g6 {[%emt 0:01:40]} 4. Nf3 {[%emt 0:00:05]} Bg7 {[%emt 0:00:04]} 5. Bb5 {[%emt 0:00:06]} Nd4 {[%emt 0:00:15]} 6. O-O {[%emt 0:00:37]} Nxb5 {[%emt 0:00:25]} 7. Nxb5 {[%emt 0:00:08]} Nf6 {[%emt 0:00:10]} 8. d3 {[%emt 0:13:18]} O-O {[%emt 0:00:24]} 9. Qe1 {[%emt 0:01:43]} d5 {[%emt 0:01:22]} 10. Nc3 {[%emt 0:03:47]} d4 {[%emt 0:33:11]} 11. Ne2 {[%emt 0:05:43]} Bg4 {[%emt 0:08:10]} 12. Qh4 {[%emt 0:02:12]} e6 {[%emt 0:05:47]} 13. f5 {[%emt 0:04:27]} exf5 {[%emt 0:00:34]} 14. Bg5 {[%emt 0:04:07]} h6 {[%emt 0:24:06]} 15. Bxh6 {[%emt 0:03:58]} Nxe4 {[%emt 0:03:32]} 16. Bg5 {[%emt 0:11:46]} Qd7 {[%emt 0:01:52]} 17. dxe4 {[%emt 0:04:08]} fxe4 {[%emt 0:00:08]} 18. Nfxd4 {[%emt 0:15:17]} cxd4 {[%emt 0:00:51]} 19. Ng3 {[%emt 0:00:26]} f5 {[%emt 0:12:17]} 20. h3 {[%emt 0:03:32]} Bh5 {[%emt 0:00:06]} 21. Nxh5 {[%emt 0:00:43]} gxh5 {[%emt 0:00:06]} 22. Qxh5 {[%emt 0:00:27]} Qe8 {[%emt 0:03:01]} 23. Qh4 {[%emt 0:03:19]} Qg6 {[%emt 0:00:30]} 24. Rf4 {[%emt 0:05:03]} Be5 {[%emt 0:00:34]} 25. Raf1 {[%emt 0:05:18]} Rf7 {[%emt 0:00:40]} 26. g4 {[%emt 0:01:43]} Bxf4 {[%emt 0:01:22]} 27. Bxf4 {[%emt 0:04:46]} fxg4 {[%emt 0:00:31]} 28. hxg4 {[%emt 0:00:16]} Raf8 {[%emt 0:01:48]} 29. g5 {[%emt 0:00:42]} Rh7 {[%emt 0:01:07]} 30. Qg3 {[%emt 0:00:57]} e3 {[%emt 0:02:36]} 31. Rd1 {[%emt 0:03:06]} Qe4 {[%emt 0:00:17]} 0-1

[Event "4NCL Div 1 2018-19"]
[Site "Telford"]
[Date "2019.02.09"]
[Round "5.9"]
[White "Ris, Robert"]
[Black "Roberson, Peter T"]
[Result "1/2-1/2"]
[ECO "E05"]
[WhiteElo "2450"]
[BlackElo "2403"]
[Annotator "ChessBase"]
[PlyCount "45"]
[EventDate "2018.11.10"]
[EventType "team-tourn"]
[EventCountry "GBR"]
[SourceTitle "playchess.com"]
[Source "ChessBase"]
[SourceQuality "1"]
[TimeControl "40/6000+30:3000+30"]

1. Nf3 {[%emt 0:00:00]} Nf6 {[%emt 0:00:19]} 2. g3 {[%emt 0:01:16]} d5 {[%emt 0:00:48]} 3. Bg2 {[%emt 0:00:19]} e6 {[%emt 0:00:18]} 4. c4 {[%emt 0:01:09]} Be7 {[%emt 0:00:53]} 5. d4 {[%emt 0:00:25]} O-O {[%emt 0:00:22]} 6. O-O {[%emt 0:00:07]} dxc4 {[%emt 0:00:41]} 7. Qc2 {[%emt 0:00:12]} a6 {[%emt 0:00:27]} 8. a4 {[%emt 0:00:49]} Bd7 {[%emt 0:00:15]} 9. Qxc4 {[%emt 0:01:04]} Bc6 {[%emt 0:01:10]} 10. Bf4 {[%emt 0:01:14]} Bd6 {[%emt 0:03:33]} 11. Bg5 {[%emt 0:01:55]} Nbd7 {[%emt 0:03:39]} 12. Qc2 {[%emt 0:02:25]} h6 {[%emt 0:06:23]} 13. Bxf6 {[%emt 0:00:29]} Nxf6 {[%emt 0:00:09]} 14. Nbd2 {[%emt 0:00:32]} Bxf3 {[%emt 0:06:15]} 15. Bxf3 {[%emt 0:01:36]} c6 {[%emt 0:01:14]} 16. Nc4 {[%emt 0:03:26]} a5 {[%emt 0:07:30]} 17. Rfd1 {[%emt 0:05:40]} Qe7 {[%emt 0:02:51]} 18. Qb3 {[%emt 0:04:47]} Bb4 {[%emt 0:09:25]} 19. Ne5 {[%emt 0:09:23]} Bd6 {[%emt 0:16:39]} 20. Nd3 {[%emt 0:09:49]} Nd5 {[%emt 0:05:41]} 21. e3 {[%emt 0:09:53]} Nb4 {[%emt 0:03:15]} 22. Kg2 {[%emt 0:05:54]} Rfd8 {[%emt 0:02:47]} 23. Nxb4 {[%emt 0:04:57]} 1/2-1/2

[Event "4NCL Div 1 2018-19"]
[Site "Telford"]
[Date "2019.02.09"]
[Round "5.10"]
[White "Wells, Peter K"]
[Black "Claridge-Hansen, William"]
[Result "1/2-1/2"]
[ECO "E16"]
[WhiteElo "2415"]
[BlackElo "2284"]
[Annotator "NA"]
[PlyCount "36"]
[EventDate "2018.11.10"]
[EventType "team-tourn"]
[EventCountry "GBR"]
[SourceTitle "playchess.com"]
[Source "ChessBase"]
[SourceQuality "1"]
[TimeControl "40/6000+30:3000+30"]

1. d4 {[%emt 0:06:21]} Nf6 {[%emt 0:00:00]} 2. c4 {[%emt 0:00:31]} e6 {[%emt 0:00:00]} 3. Nf3 {[%emt 0:02:22]} b6 {[%emt 0:00:17]} 4. g3 {[%emt 0:00:07]} Bb7 {[%emt 0:00:38]} 5. Bg2 {[%emt 0:00:07]} Bb4+ {[%emt 0:00:34]} 6. Bd2 {[%emt 0:00:06]} c5 {[%emt 0:01:01]} 7. Bxb4 {[%emt 0:04:52]} cxb4 {[%emt 0:00:09]} 8. a3 {[%emt 0:00:06]} Qe7 {[%emt 0:02:27]} 9. O-O {[%emt 0:15:29]} O-O {[%emt 0:00:15]} 10. Qd3 {[%emt 0:09:24]} Rc8 {[%emt 0:06:02]} 11. Nbd2 {[%emt 0:03:40]} bxa3 {[%emt 0:11:53]} 12. Qxa3 {[%emt 0:24:03]} Qxa3 {[%emt 0:05:10]} 13. Rxa3 {[%emt 0:00:14]} d6 {[%emt 0:07:26]} 14. Rfa1 {[%emt 0:06:09]} a5 {[%emt 0:04:30]} 15. b4 {[%emt 0:08:34]} Nc6 {[%emt 0:00:37]} 16. bxa5 {[%emt 0:00:57]} Rxa5 {[%emt 0:00:57]} 17. Nb3 {[%emt 0:02:37]} Rxa3 {[%emt 0:01:15]} 18. Rxa3 {[%emt 0:00:04]} Ra8 {[%emt 0:13:10]} 1/2-1/2

[Event "4NCL Div 1 2018-19"]
[Site "Telford"]
[Date "2019.02.09"]
[Round "5.10"]
[White "Rendle, Thomas E"]
[Black "Zhou, Yang-Fan"]
[Result "1/2-1/2"]
[ECO "B23"]
[WhiteElo "2373"]
[BlackElo "2436"]
[Annotator "NA"]
[PlyCount "65"]
[EventDate "2018.11.10"]
[EventType "team-tourn"]
[EventCountry "GBR"]
[SourceTitle "playchess.com"]
[Source "ChessBase"]
[SourceQuality "1"]
[TimeControl "40/6000+30:3000+30"]

1. e4 {[%emt 0:00:00]} c5 {[%emt 0:00:00]} 2. Nc3 {[%emt 0:00:00]} Nc6 {[%emt 0:00:00]} 3. Bb5 {[%emt 0:00:00]} Nd4 {[%emt 0:00:00]} 4. Nf3 {[%emt 0:00:00]} Nxb5 {[%emt 0:03:12]} 5. Nxb5 {[%emt 0:01:22]} d6 {[%emt 0:00:03]} 6. Nc3 {[%emt 0:08:26]} Nf6 {[%emt 0:01:35]} 7. d4 {[%emt 0:02:24]} cxd4 {[%emt 0:00:34]} 8. Qxd4 {[%emt 0:00:14]} e5 {[%emt 0:00:16]} 9. Qa4+ {[%emt 0:00:58]} Bd7 {[%emt 0:01:13]} 10. Qb3 {[%emt 0:07:59]} h6 {[%emt 0:20:19]} 11. Qxb7 {[%emt 0:07:11]} Be7 $14 {[%emt 0:00:05]} 12. O-O {[%emt 0:06:20]} O-O {[%emt 0:02:43]} 13. Rd1 {[%emt 0:04:22]} a5 {[%emt 0:03:40]} 14. Nh4 {[%emt 0:24:00]} Rb8 {[%emt 0:13:59]} 15. Qa6 {[%emt 0:02:45]} Qc7 {[%emt 0:00:40]} 16. Qd3 {[%emt 0:04:17]} Rb4 {[%emt 0:11:59]} 17. Nf5 {[%emt 0:05:09]} Bxf5 {[%emt 0:02:02]} 18. exf5 {[%emt 0:00:07]} d5 {[%emt 0:08:31]} 19. Nxd5 {[%emt 0:04:21]} Nxd5 {[%emt 0:00:07]} 20. Qxd5 {[%emt 0:00:09]} Qxc2 {[%emt 0:00:48]} 21. Qd3 {[%emt 0:04:58]} Rc8 {[%emt 0:02:21]} 22. b3 {[%emt 0:03:56]} Rd4 {[%emt 0:07:04]} 23. Qxc2 {[%emt 0:00:15]} Rxc2 {[%emt 0:00:02]} 24. Rf1 {[%emt 0:02:49]} Bg5 {[%emt 0:03:40]} 25. g3 {[%emt 0:02:16]} Bd2 {[%emt 0:07:57]} 26. a3 {[%emt 0:08:40]} Kf8 {[%emt 0:03:48]} 27. Rb1 {[%emt 0:01:16]} Ke7 {[%emt 0:01:45]} 28. b4 {[%emt 0:02:30]} a4 {[%emt 0:02:25]} 29. Bxd2 {[%emt 0:02:05]} Rdxd2 {[%emt 0:00:16]} 30. b5 {[%emt 0:00:40]} Rb2 {[%emt 0:04:57]} 31. Rxb2 {[%emt 0:00:04]} Rxb2 {[%emt 0:00:04]} 32. Rc1 {[%emt 0:00:07]} Kf6 {[%emt 0:02:00]} 33. Rc4 {[%emt 0:00:59]} 1/2-1/2

[Event "4NCL Div 1 2018-19"]
[Site "Telford"]
[Date "2019.02.09"]
[Round "5.11"]
[White "Suarez Real, Alberto"]
[Black "Daskalov, Dimitar"]
[Result "1-0"]
[ECO "C42"]
[WhiteElo "2438"]
[BlackElo "2330"]
[Annotator "NA"]
[PlyCount "91"]
[EventDate "2018.11.10"]
[EventType "team-tourn"]
[EventCountry "GBR"]
[SourceTitle "playchess.com"]
[Source "ChessBase"]
[SourceQuality "1"]
[TimeControl "40/6000+30:3000+30"]

1. e4 {[%emt 0:00:00]} e5 {[%emt 0:00:00]} 2. Nf3 {[%emt 0:00:00]} Nf6 {[%emt 0:00:00]} 3. Nxe5 {[%emt 0:00:19]} d6 {[%emt 0:00:00]} 4. Nf3 {[%emt 0:00:18]} Nxe4 {[%emt 0:00:00]} 5. d4 {[%emt 0:00:31]} d5 {[%emt 0:00:03]} 6. Bd3 {[%emt 0:00:20]} Nc6 {[%emt 0:01:17]} 7. O-O {[%emt 0:00:45]} Be7 {[%emt 0:02:16]} 8. c4 {[%emt 0:01:22]} Nb4 {[%emt 0:02:33]} 9. Be2 {[%emt 0:03:17]} O-O {[%emt 0:08:49]} 10. Nc3 {[%emt 0:02:11]} Be6 {[%emt 0:08:15]} 11. Be3 {[%emt 0:27:23]} Bf6 {[%emt 0:10:55]} 12. Qa4 {[%emt 0:26:12]} Nxc3 {[%emt 0:18:05]} 13. bxc3 {[%emt 0:00:07]} Nc6 {[%emt 0:00:10]} 14. c5 {[%emt 0:13:33]} a6 {[%emt 0:02:41]} 15. Rab1 {[%emt 0:04:39]} Qd7 {[%emt 0:00:48]} 16. Qc2 {[%emt 0:03:49]} Bf5 {[%emt 0:04:05]} 17. Bd3 {[%emt 0:00:10]} Bxd3 {[%emt 0:00:03]} 18. Qxd3 {[%emt 0:00:05]} Na5 {[%emt 0:02:55]} 19. Bg5 {[%emt 0:00:42]} Bxg5 {[%emt 0:00:57]} 20. Nxg5 {[%emt 0:00:03]} g6 {[%emt 0:00:08]} 21. Nf3 {[%emt 0:04:56]} f6 {[%emt 0:00:16]} 22. Nd2 {[%emt 0:09:38]} Rad8 {[%emt 0:04:37]} 23. Qg3 {[%emt 0:00:31]} Rfe8 {[%emt 0:02:55]} 24. Rfe1 {[%emt 0:00:23]} b5 {[%emt 0:03:48]} 25. h4 {[%emt 0:02:55]} Nc4 {[%emt 0:04:17]} 26. Nxc4 {[%emt 0:00:50]} dxc4 {[%emt 0:00:57]} 27. Qf3 {[%emt 0:02:38]} Kf7 {[%emt 0:03:25]} 28. Qb7 {[%emt 0:02:17]} Qc8 {[%emt 0:04:27]} 29. Qc6 {[%emt 0:00:06]} Rxe1+ {[%emt 0:04:17]} 30. Rxe1 {[%emt 0:00:02]} b4 {[%emt 0:00:08]} 31. Qa4 {[%emt 0:02:30]} bxc3 {[%emt 0:05:17]} 32. Qxc4+ {[%emt 0:00:01]} Kf8 {[%emt 0:00:07]} 33. Re6 {[%emt 0:01:49]} Qd7 {[%emt 0:01:33]} 34. Rxf6+ {[%emt 0:00:26]} Kg7 {[%emt 0:00:03]} 35. Rf4 {[%emt 0:00:14]} Qd5 {[%emt 0:02:06]} 36. Qxc3 {[%emt 0:00:02]} Qxa2 {[%emt 0:00:06]} 37. Qe3 {[%emt 0:01:40]} Rd7 {[%emt 0:06:58]} 38. Qe5+ {[%emt 0:00:47]} Kh6 {[%emt 0:00:06]} 39. Qg5+ {[%emt 0:00:04]} Kg7 {[%emt 0:00:03]} 40. Qe5+ {[%emt 0:01:07]} Kh6 {[%emt 0:00:06]} 41. Qg5+ {[%emt 0:11:44]} Kg7 {[%emt 0:00:05]} 42. Qf6+ {[%emt 0:00:05]} Kh6 {[%emt 0:00:03]} 43. Qf8+ {[%emt 0:00:17]} Rg7 {[%emt 0:00:15]} 44. g4 {[%emt 0:05:37]} Qg8 {[%emt 0:03:05]} 45. Qf6 {[%emt 0:00:15]} Rd7 {[%emt 0:02:07]} 46. Rf5 {[%emt 0:00:23]} 1-0

[Event "4NCL Div 1 2018-19"]
[Site "Telford"]
[Date "2019.02.09"]
[Round "5.12"]
[White "Palliser, Richard J D"]
[Black "Manley, Jon P"]
[Result "1/2-1/2"]
[ECO "D27"]
[WhiteElo "2414"]
[BlackElo "2149"]
[Annotator "NA"]
[PlyCount "60"]
[EventDate "2018.11.10"]
[EventType "team-tourn"]
[EventCountry "GBR"]
[SourceTitle "playchess.com"]
[Source "ChessBase"]
[SourceQuality "1"]
[TimeControl "40/6000+30:3000+30"]

1. d4 {[%emt 1:57:00]} d5 {[%emt 0:00:16]} 2. c4 {[%emt 0:00:08]} dxc4 {[%emt 0:00:40]} 3. e3 {[%emt 0:01:05]} e6 {[%emt 0:00:36]} 4. Bxc4 {[%emt 0:00:14]} a6 {[%emt 0:00:27]} 5. Nf3 {[%emt 0:00:23]} Nf6 {[%emt 0:04:30]} 6. O-O {[%emt 0:00:13]} c5 {[%emt 0:01:34]} 7. Bd3 {[%emt 0:01:41]} Nc6 {[%emt 0:03:26]} 8. Nc3 {[%emt 0:00:26]} Qc7 {[%emt 0:07:58]} 9. Bd2 {[%emt 0:08:38]} Bd6 {[%emt 0:16:37]} 10. Rc1 {[%emt 0:03:47]} cxd4 {[%emt 0:07:09]} 11. exd4 {[%emt 0:00:05]} O-O {[%emt 0:00:45]} 12. Bg5 {[%emt 0:10:18]} Bf4 {[%emt 0:02:20]} 13. Bxf6 {[%emt 0:01:25]} gxf6 {[%emt 0:15:36]} 14. Ne4 {[%emt 0:24:39]} Qe7 {[%emt 0:04:12]} 15. Rc4 {[%emt 0:05:30]} f5 {[%emt 0:04:59]} 16. Nc3 {[%emt 0:02:56]} Nb4 {[%emt 0:05:54]} 17. d5 {[%emt 0:02:55]} Bd6 {[%emt 0:04:05]} 18. Bxf5 {[%emt 0:12:23]} exf5 {[%emt 0:06:27]} 19. a3 {[%emt 0:00:04]} a5 {[%emt 0:03:44]} 20. axb4 {[%emt 0:04:11]} axb4 {[%emt 0:00:38]} 21. Nb5 {[%emt 0:01:32]} Ra5 {[%emt 0:00:48]} 22. Re1 {[%emt 0:01:23]} Qf6 {[%emt 0:00:18]} 23. Nxd6 {[%emt 0:00:08]} Qxd6 {[%emt 0:00:21]} 24. Qc1 {[%emt 0:08:15]} Bd7 {[%emt 0:02:59]} 25. Rh4 {[%emt 0:10:52]} Rxd5 {[%emt 0:07:59]} 26. Qg5+ {[%emt 0:01:49]} Qg6 {[%emt 0:00:27]} 27. Qf4 {[%emt 0:00:38]} Qd6 {[%emt 0:02:22]} 28. Qg5+ {[%emt 0:03:51]} Qg6 {[%emt 0:00:06]} 29. Qf4 {[%emt 0:01:06]} Qd6 {[%emt 0:00:12]} 30. Qg5+ {[%emt 0:01:36]} Qg6 {[%emt 0:01:05]} 1/2-1/2

[Event "4NCL Div 1 2018-19"]
[Site "Telford"]
[Date "2019.02.09"]
[Round "5.12"]
[White "Smith, Murray"]
[Black "Sarakauskas, Gediminas"]
[Result "1/2-1/2"]
[ECO "A30"]
[WhiteElo "2190"]
[BlackElo "2430"]
[Annotator "NA"]
[PlyCount "46"]
[EventDate "2018.11.10"]
[EventType "team-tourn"]
[EventCountry "GBR"]
[SourceTitle "playchess.com"]
[Source "ChessBase"]
[SourceQuality "1"]
[TimeControl "40/6000+30:3000+30"]

1. c4 {[%emt 0:00:00]} Nf6 {[%emt 0:00:00]} 2. Nc3 {[%emt 0:00:13]} e6 {[%emt 0:00:00]} 3. Nf3 {[%emt 0:01:28]} c5 {[%emt 0:00:04]} 4. g3 {[%emt 0:01:39]} b6 {[%emt 0:00:05]} 5. Bg2 {[%emt 0:00:22]} Bb7 {[%emt 0:00:04]} 6. O-O {[%emt 0:01:33]} d6 {[%emt 0:00:18]} 7. d3 {[%emt 0:16:12]} Be7 {[%emt 0:01:21]} 8. a3 {[%emt 0:03:17]} O-O {[%emt 0:02:26]} 9. Rb1 {[%emt 0:05:44]} Qc8 {[%emt 0:05:34]} 10. Bd2 {[%emt 0:02:31]} Nbd7 {[%emt 0:19:18]} 11. b4 {[%emt 0:07:24]} Rd8 {[%emt 0:00:10]} 12. Qb3 {[%emt 0:18:41]} d5 {[%emt 0:01:53]} 13. cxd5 {[%emt 0:02:30]} exd5 {[%emt 0:01:09]} 14. bxc5 {[%emt 0:03:16]} Nxc5 {[%emt 0:00:10]} 15. Qb2 {[%emt 0:02:41]} Qd7 {[%emt 0:17:36]} 16. Nb5 {[%emt 0:05:42]} a6 {[%emt 0:01:07]} 17. Nbd4 {[%emt 0:00:05]} Na4 {[%emt 0:04:14]} 18. Qb3 {[%emt 0:01:49]} b5 {[%emt 0:01:22]} 19. Rfc1 {[%emt 0:02:28]} Rdc8 {[%emt 0:01:56]} 20. Bb4 {[%emt 0:08:08]} Bd8 {[%emt 0:15:55]} 21. Bd2 {[%emt 0:10:15]} Be7 {[%emt 0:01:35]} 22. Bb4 {[%emt 0:00:44]} Bd8 {[%emt 0:00:05]} 23. Bd2 {[%emt 0:00:03]} Be7 {[%emt 0:00:05]} 1/2-1/2

[Event "4NCL Div 1 2018-19"]
[Site "Telford"]
[Date "2019.02.09"]
[Round "5.13"]
[White "Wadsworth, Matthew J"]
[Black "Holland, James P"]
[Result "1-0"]
[ECO "A27"]
[WhiteElo "2350"]
[BlackElo "2260"]
[Annotator "NA"]
[PlyCount "89"]
[EventDate "2018.11.10"]
[EventType "team-tourn"]
[EventCountry "GBR"]
[SourceTitle "playchess.com"]
[Source "ChessBase"]
[SourceQuality "1"]
[TimeControl "40/6000+30:3000+30"]

1. Nf3 {[%emt 0:00:00]} Nc6 {[%emt 0:00:00]} 2. c4 {[%emt 0:00:40]} e5 {[%emt 0:01:04]} 3. Nc3 {[%emt 0:00:32]} Bb4 {[%emt 0:00:04]} 4. g3 {[%emt 0:02:44]} Bxc3 {[%emt 0:03:57]} 5. bxc3 {[%emt 0:00:10]} e4 {[%emt 0:00:16]} 6. Nd4 {[%emt 0:00:36]} Nf6 {[%emt 0:00:04]} 7. Bg2 {[%emt 0:01:58]} O-O {[%emt 0:07:15]} 8. f3 {[%emt 0:06:22]} Nxd4 {[%emt 0:11:08]} 9. cxd4 {[%emt 0:00:07]} d5 {[%emt 0:00:03]} 10. fxe4 {[%emt 0:04:43]} dxe4 {[%emt 0:01:46]} 11. Bb2 {[%emt 0:00:51]} c6 {[%emt 0:05:46]} 12. O-O {[%emt 0:02:55]} Be6 {[%emt 0:08:18]} 13. Qc2 {[%emt 0:00:15]} Qa5 {[%emt 0:00:05]} 14. Rxf6 {[%emt 0:07:12]} gxf6 {[%emt 0:00:03]} 15. Bxe4 {[%emt 0:00:08]} Qh5 {[%emt 0:06:03]} 16. Rf1 {[%emt 0:08:38]} Rfe8 {[%emt 0:02:45]} 17. d3 {[%emt 0:04:53]} Qg5 {[%emt 0:05:00]} 18. Rf4 {[%emt 0:03:37]} f5 {[%emt 0:02:18]} 19. Bf3 {[%emt 0:00:49]} Rad8 {[%emt 0:01:23]} 20. Qc3 {[%emt 0:02:06]} Qg7 {[%emt 0:01:05]} 21. Qb3 {[%emt 0:01:43]} Qf8 {[%emt 0:04:15]} 22. Qc3 {[%emt 0:04:12]} f6 {[%emt 0:03:42]} 23. e4 {[%emt 0:01:59]} fxe4 {[%emt 0:04:41]} 24. dxe4 {[%emt 0:00:07]} Bh3 {[%emt 0:02:21]} 25. Rh4 {[%emt 0:06:25]} Be6 {[%emt 0:11:00]} 26. d5 {[%emt 0:06:03]} cxd5 {[%emt 0:07:55]} 27. cxd5 {[%emt 0:00:06]} Rc8 {[%emt 0:00:51]} 28. Qd4 {[%emt 0:00:09]} Qd6 {[%emt 0:04:47]} 29. dxe6 {[%emt 0:01:53]} Rc1+ {[%emt 0:00:13]} 30. Kg2 {[%emt 0:00:02]} Rc2+ {[%emt 0:00:54]} 31. Kh3 {[%emt 0:00:11]} Qxe6+ {[%emt 0:00:50]} 32. Bg4 {[%emt 0:02:03]} Qxe4 {[%emt 0:00:53]} 33. Qxe4 {[%emt 0:01:05]} Rxe4 {[%emt 0:00:04]} 34. Bxf6 {[%emt 0:00:50]} Rxa2 {[%emt 0:08:57]} 35. Rh5 {[%emt 0:02:38]} Rf2 {[%emt 0:00:28]} 36. Bc3 {[%emt 0:05:30]} Re7 {[%emt 0:03:12]} 37. Rc5 {[%emt 0:02:20]} Kf7 {[%emt 0:01:29]} 38. Bd4 {[%emt 0:01:26]} Ra2 {[%emt 0:01:30]} 39. Rf5+ {[%emt 0:02:03]} Ke8 {[%emt 0:01:51]} 40. Bc5 {[%emt 0:00:21]} Ra5 {[%emt 0:01:11]} 41. Bxe7 {[%emt 0:51:22]} Rxf5 {[%emt 0:00:50]} 42. Bxf5 {[%emt 0:00:00]} Kxe7 {[%emt 0:00:03]} 43. Bxh7 {[%emt 0:00:00]} b5 {[%emt 0:00:06]} 44. Bd3 {[%emt 0:00:00]} b4 {[%emt 0:00:06]} 45. Bc2 {[%emt 0:00:00]} 1-0

[Event "4NCL Div 1 2018-19"]
[Site "Telford"]
[Date "2019.02.09"]
[Round "5.14"]
[White "Foisor, Mihaela-Veronica"]
[Black "Kilpatrick, Callum"]
[Result "0-1"]
[ECO "A16"]
[WhiteElo "2220"]
[BlackElo "2353"]
[Annotator "NA"]
[PlyCount "82"]
[EventDate "2018.11.10"]
[EventType "team-tourn"]
[EventCountry "GBR"]
[SourceTitle "playchess.com"]
[Source "ChessBase"]
[SourceQuality "1"]
[TimeControl "40/6000+30:3000+30"]

1. c4 {[%emt 0:00:00]} Nf6 {[%emt 0:00:00]} 2. Nc3 {[%emt 0:00:00]} d5 {[%emt 0:00:01]} 3. cxd5 {[%emt 0:02:10]} Nxd5 {[%emt 0:00:05]} 4. g3 {[%emt 0:00:10]} g6 {[%emt 0:00:48]} 5. Bg2 {[%emt 0:00:04]} Nb6 {[%emt 0:00:18]} 6. d3 {[%emt 0:00:47]} Bg7 {[%emt 0:00:09]} 7. Bf4 {[%emt 0:00:14]} e5 {[%emt 0:19:02]} 8. Be3 {[%emt 0:02:05]} Nc6 {[%emt 0:00:08]} 9. Bc5 {[%emt 0:03:31]} Ne7 {[%emt 0:22:20]} 10. h4 {[%emt 0:02:30]} O-O {[%emt 0:02:34]} 11. h5 {[%emt 0:02:29]} Re8 {[%emt 0:00:04]} 12. h6 {[%emt 0:00:47]} Bh8 {[%emt 0:00:19]} 13. Qd2 {[%emt 0:03:15]} Nf5 {[%emt 0:02:18]} 14. Nf3 {[%emt 0:07:51]} Nd7 {[%emt 0:18:23]} 15. Ba3 {[%emt 0:01:42]} Nf6 {[%emt 0:07:30]} 16. e4 {[%emt 0:10:24]} Nd4 {[%emt 0:01:18]} 17. Nxd4 {[%emt 0:00:13]} Qxd4 {[%emt 0:02:17]} 18. Rc1 {[%emt 0:07:54]} Qd7 {[%emt 0:06:11]} 19. b3 {[%emt 0:07:02]} b6 {[%emt 0:01:10]} 20. Bh3 {[%emt 0:01:05]} Qd8 {[%emt 0:00:34]} 21. Bxc8 {[%emt 0:00:36]} Rxc8 {[%emt 0:00:18]} 22. Bb2 {[%emt 0:03:12]} Qd7 {[%emt 0:00:35]} 23. Kf1 {[%emt 0:04:04]} Red8 {[%emt 0:03:23]} 24. Rd1 {[%emt 0:01:04]} b5 {[%emt 0:00:04]} 25. Qe2 {[%emt 0:04:43]} c5 {[%emt 0:01:57]} 26. Kg2 {[%emt 0:00:59]} a6 {[%emt 0:00:23]} 27. Rd2 {[%emt 0:07:35]} Rc6 {[%emt 0:00:05]} 28. f3 {[%emt 0:03:18]} c4 {[%emt 0:06:55]} 29. bxc4 {[%emt 0:00:26]} bxc4 {[%emt 0:00:05]} 30. Rhd1 {[%emt 0:00:18]} Rd6 {[%emt 0:00:18]} 31. d4 {[%emt 0:01:39]} Rxd4 {[%emt 0:03:13]} 32. Rxd4 {[%emt 0:00:08]} exd4 {[%emt 0:00:04]} 33. Qxc4 {[%emt 0:00:43]} d3 {[%emt 0:04:24]} 34. Na4 {[%emt 0:10:52]} Rc8 {[%emt 0:06:31]} 35. Nc5 {[%emt 0:06:15]} Qe7 {[%emt 0:00:14]} 36. Bd4 {[%emt 0:00:29]} Nh5 {[%emt 0:02:08]} 37. Bxh8 {[%emt 0:02:25]} Qg5 {[%emt 0:00:49]} 38. g4 {[%emt 0:08:59]} Rxc5 {[%emt 0:00:28]} 39. Qd4 {[%emt 0:04:19]} Rc2+ {[%emt 0:00:12]} 40. Kg1 {[%emt 0:02:45]} Qh4 {[%emt 0:01:24]} 41. Be5 {[%emt 0:50:28]} Ng3 {[%emt 0:50:50]} 0-1